Cogmind - Beta 17.1 @@@ ROGUE MODE // 2026.09.10 @ 15:43:07 Player: naththebg Result: Self-destructed Performance ------------- Evolutions (1) 500 Regions Visited (3) 600 Robots Destroyed (60) 300 Value Destroyed (1055) 1055 Prototype IDs (5) 100 Alien Tech Used (0) 0 Bonus (6000) 6000 TOTAL SCORE: 8555 Bonus ------- Prayed to X0-1V1 5000 Major X0-1V1 Interference 1000 Cogmind --------- Core Integrity 235/235 Matter 300/300 Energy 992/1280 System Corruption 0% Temperature Cool (0) Movement Treading (160) Location -9/Materials Parts ------- > --- POWER (1) -------- Cooled Ion Engine > --- PROPULSION (2) --- Light Treads Improved Treads > --- UTILITY (3) ------ Heat Sink Improved Heat Sink Large Storage Unit > --- WEAPON (3) ------- Advanced Beam Cannon Advanced Beam Cannon Advanced Beam Cannon > --- INVENTORY (15) --- Improved Ion Engine Light Treads Light Treads Light Treads Light Treads Seismic Detector Advanced Beam Cannon Heavy Particle Cannon Heavy Particle Cannon Heavy Particle Cannon Heavy Particle Cannon Axe Axe Axe Axe Peak State ------------ > --- POWER ------------ Light Ion Engine > --- PROPULSION ------- Light Treads Light Treads > --- UTILITY ---------- Large Storage Unit X0-1V1's Piety Tracker > --- WEAPON ----------- Advanced Beam Cannon Advanced Beam Cannon > --- INVENTORY -------- Light Treads Light Treads Compact Wheel Seismic Detector Particle Gun Advanced Beam Cannon Advanced Beam Cannon Heavy Hammer [Rating: 24] Favorites ----------- Power Light Ion Engine Engine Light Ion Engine Power Core Light Nuclear Core Propulsion Light Treads Treads Light Treads Utility Heat Sink Device Heat Sink Storage Large Storage Unit Weapon Advanced Beam Cannon Energy Gun Improved Medium Laser Energy Cannon Advanced Beam Cannon Ballistic Gun Assault Rifle Impact Weapon Heavy Hammer Build | -11 -10 -10 -9 ------- Run | Yrd Mat Min Mat Slots Evolved 2 | . . . 2 Power . | . . . . Propulsion . | . . . . Utility 1 | . . . 1 Weapon 1 | . . . 1 Parts Attached 28 | 7 8 5 8 Power 6 | 1 2 1 2 Engine 4 | 1 1 . 2 Core 2 | . 1 1 . Reactor . | . . . . Propulsion 7 | 2 . 2 3 Treads 7 | 2 . 2 3 Leg . | . . . . Wheel . | . . . . Hover . | . . . . Flight . | . . . . Utility 7 | 2 2 2 1 Device 5 | 1 1 2 1 Storage 2 | 1 1 . . Processor . | . . . . Hackware . | . . . . Protection . | . . . . Artifact . | . . . . Weapon 8 | 2 4 . 2 Energy Gun 1 | . . . 1 Energy Cannon 4 | . 3 . 1 Ballistic Gun 2 | 2 . . . Ballistic Cannon . | . . . . Launcher . | . . . . Special Weapon . | . . . . Impact Weapon 1 | . 1 . . Slashing Weapon . | . . . . Piercing Weapon . | . . . . Special Melee Weapon . | . . . . Unidentified Prototypes 5 | . 1 1 3 Parts Lost 6 | . 2 3 1 Power 3 | . 2 1 . Propulsion 2 | . . 2 . Utility . | . . . . Weapon 1 | . . . 1 Highest Loss Streak 2 | . 1 2 1 To Critical Strikes . | . . . . Average Backups 8 | 5 7 7 11 Power . | . . . . Propulsion 2 | 3 2 2 3 Utility . | . . 1 1 Weapon 4 | . 3 4 6 Tool/Special . | . . . . Unused Backups 19 | . 4 . 15 Power 1 | . . . 1 Propulsion 5 | . 3 . 2 Utility . | . . . . Weapon 13 | . 1 . 12 Tool/Special . | . . . . Average Slot Usage (%) 98 | . 99 98 97 Engine 9 | . 9 12 4 Core 3 | . 4 . 6 Treads 26 | . 28 27 22 Device 15 | . 14 14 20 Storage 13 | . 14 14 11 Energy Cannon 27 | . 26 26 32 Peak Build Rating 24 | 7 14 24 23 Average Rating 13 | 6 12 11 20 On Entrance 8 | . 7 12 14 Avg Prop Armor Cover (%) . | . . . . Naked Turns . | . . . . Heaviest Build 42 | 13 32 34 42 Greatest Support 43 | 40 40 40 43 Greatest Overweight (x) 1 | . . 1 . Average Overweight (x) . | . . . . Largest Inventory Capacity 15 | 8 15 15 15 Average Capacity 11 | 7 9 15 15 Most Carried 15 | 6 8 8 15 Average Carried 8 | 5 7 7 11 Final Capacity 15 | 8 15 15 15 Final Carried 15 | 6 8 7 15 Class Distribution -------------------- 82% | Mutant 8% | Gunner 8% | Scavenger-Gunner Dominant Class ---------------- Mutant | -10/Materials Mutant | -10/Mines Gunner | -9/Materials Resources | -11 -10 -10 -9 ----------- Run | Yrd Mat Min Mat Matter Collected 790 | 401 181 107 101 Remotely . | . . . . Salvage Created 1982 | 251 721 143 867 Parts 117 | 21 39 4 53 Haulers Intercepted 7 | . 2 . 5 Recyclers Shooed 2 | 1 . . 1 Parts Field Recycled . | . . . . Retrieved Matter . | . . . . Parts Self-Destructed . | . . . . Prevented . | . . . . Parts Restored . | . . . . Kills | -11 -10 -10 -9 ------- Run | Yrd Mat Min Mat Combat Hostiles Destroyed 31 | . 15 7 9 Melee 2 | . 1 1 . Cannons 26 | . 13 5 8 Classes Destroyed 11 | 3 5 1 2 Worker 7 | 2 2 . 3 Builder 2 | . 1 . 1 Tunneler 6 | 5 1 . . Hauler 7 | . 2 . 5 Recycler 3 | 1 1 . 1 Operator 1 | . . . 1 Watcher 4 | . 3 . 1 Swarmer 9 | . 6 3 . Grunt 16 | . 9 2 5 Sentry 4 | . . . 4 Assembled 1 | . . 1 . Best Kill Streak 6 | 3 6 3 5 Combat Bots Only 4 | . 4 3 2 Max Kills in Single Turn 2 | 1 1 1 2 Gunslinging . | . . . . Exploded . | . . . . Melee 1 | . 1 1 . Uniques/NPCs Destroyed 1 | . . 1 . YI-UF0 (-10/Mines) Combat | -11 -10 -10 -9 -------- Run | Yrd Mat Min Mat Hostile Shots Fired 125 | . 72 37 16 Missed 27 | . 16 6 5 Hits 98 | . 56 31 11 Projectile 98 | . 56 31 11 AOE 6 | . . 6 . Critical Strikes 1 | . . . 1 Damage Taken 1172 | . 534 431 207 Core 230 | . 87 113 30 Absorbed by Shields . | . . . . Core Remaining (%) 64 | 100 . 28 . Volleys Fired 118 | 32 47 11 28 Largest 3 | 2 2 2 3 Hottest 204 | 40 136 136 204 Shots Fired 258 | 64 87 22 85 Gun 64 | 64 . . . Cannon 194 | . 87 22 85 Launcher . | . . . . Special . | . . . . Kinetic 64 | 64 . . . Thermal 194 | . 87 22 85 Explosive . | . . . . Electromagnetic . | . . . . Robot Hit Streak 29 | 9 17 3 29 Robot Miss Streak 7 | 4 7 3 6 Penetration Max . | . . . . Secondary Targets . | . . . . Shots Hit Robots 141 | 30 49 14 48 Core Hits 58 | 9 23 6 20 Critical Kills 1 | . . . 1 Critical Parts Destroyed 5 | . 4 1 . Critical Strikes 6 | . 4 1 1 Meltdown 1 | . . . 1 Smash 5 | . 4 1 . Melee Attacks 13 | . 8 5 . Impact 13 | . 8 5 . Slashing . | . . . . Piercing . | . . . . Sneak Attacks 4 | . 4 . . Combat Hostiles 2 | . 2 . . Follow-up Attacks . | . . . . Damage Inflicted 3209 | 379 1366 379 1085 Guns 379 | 379 . . . Cannons 2258 | . 989 184 1085 Explosions . | . . . . Melee 566 | . 375 191 . Ramming 6 | . 2 4 . Kinetic 379 | 379 . . . Thermal 2258 | . 989 184 1085 Explosive . | . . . . Electromagnetic . | . . . . Impact 566 | . 375 191 . Slashing . | . . . . Piercing . | . . . . Highest Corruption 1 | . 1 1 . Average Corruption 1 | . 1 1 . Corruption Purged . | . . . . Corruption Blocked . | . . . . Effects 14 | . 11 3 . Message Errors 3 | . 2 1 . Matter Fused 3 | . 3 . . Heat Flow Errors 2 | . 1 1 . Energy Discharges 1 | . . 1 . Data Loss (minor) 3 | . 3 . . Data Loss (major) 2 | . 2 . . Overload Shots . | . . . . Overflow Damage 460 | . 376 60 24 Projectiles 25 | . 1 . 24 Explosions . | . . . . Melee 435 | . 375 60 . Knockbacks 1 | . 1 . . Impact 1 | . 1 . . Kinetic . | . . . . Secondary . | . . . . Self-Inflicted Damage . | . . . . Shots . | . . . . Rammed 4 | . 3 1 . Targets Rammed 4 | . 3 1 . Kicked . | . . . . Crushed . | . . . . Highest Temperature 355 | . 355 143 290 Average Temperature 125 | . 148 76 58 Received Heat Transfer 195 | . 99 39 57 Effects 4 | . 4 . . Energy Bleed 1 | . 1 . . Interference 3 | . 3 . . Siege Activations . | . . . . Martial Activations . | . . . . Shielding Activations . | . . . . Robots Disrupted . | . . . . Combat Hostiles . | . . . . Robots Corrupted 3 | . 2 1 . Combat Hostiles 2 | . 1 1 . Parts Fried 3 | . 3 . . Impact Corruptions 11 | . 9 2 . Robots Melted 1 | . . . 1 Combat Hostiles 1 | . . . 1 Parts Melted 9 | . 2 2 5 Heat Transferred 4070 | . 1776 333 1961 Parts Sabotaged . | . . . . Parts Stolen . | . . . . Parts Stripped . | . . . . Power Chain Reactions . | . . . . Alert | -11 -10 -10 -9 ------- Run | Yrd Mat Min Mat Maximum Alert Level . | . . . . Low Security (%) 100 | 100 100 100 100 Level 1 . | . . . . Level 2 . | . . . . Level 3 . | . . . . Level 4 . | . . . . Level 5 . | . . . . High Security . | . . . . Max Security . | . . . . Peak Influence 190 | 10 190 50 99 Initial 13 | . . 13 . Average 47 | . 71 9 60 Influence Increases 959 | 40 502 110 307 Destroy 0b10 Robot/C 580 | . 300 100 180 Destroy 0b10 Robot/NC 150 | 40 50 . 60 Destroy Leader 142 | . 70 10 62 Successful Hack 8 | . 4 . 4 Select Force Hacks 30 | . 30 . . Disable Machine 45 | . 45 . . Destroy Structure 4 | . 3 . 1 Influence Decreases 877 | 40 468 144 225 Entered New Map 21 | . . 21 . Time Decay 826 | 40 448 123 215 Lost Part 30 | . 20 . 10 Squads Dispatched 4 | . 2 . 2 Investigation 1 | . 1 . . Extermination . | . . . . Reinforcement 3 | . 1 . 2 Assault . | . . . . Garrison . | . . . . Intercept . | . . . . Searches Triggered . | . . . . Construction Impeded . | . . . . Haulers Reinforced . | . . . . Active Scanning Responses . | . . . . Cargo Convoy Interrupts . | . . . . Stealth | -11 -10 -10 -9 --------- Run | Yrd Mat Min Mat Distress Signals 5 | . 2 . 3 Communications Jammed . | . . . . Distress Signals . | . . . . Times Spotted 36 | . 19 6 11 Peak Tracking Total 4 | . 4 3 3 Tactical Retreats . | . . . . Traps | -11 -10 -10 -9 ------- Run | Yrd Mat Min Mat Traps Triggered 2 | . 1 . 1 Indirectly . | . . . . Trap Hack Attempts . | . . . . Triggered . | . . . . Disarmed . | . . . . Reprogrammed . | . . . . Reused . | . . . . Traps Extracted . | . . . . Installed . | . . . . Triggered . | . . . . Machines | -11 -10 -10 -9 ---------- Run | Yrd Mat Min Mat Machines Disabled 3 | . 3 . . Max in Single Turn 1 | . 1 . . Machines Repaired . | . . . . Machines Dismantled . | . . . . Machines Sabotaged . | . . . . Overloaded Fab Kills . | . . . . Hacking | -11 -10 -10 -9 --------- Run | Yrd Mat Min Mat Machines Accessed 8 | . 6 . 2 Terminals 7 | . 5 . 2 Fabricators . | . . . . Repair Stations . | . . . . Recycling Units 1 | . 1 . . Scanalyzers . | . . . . Garrison Access . | . . . . Total Hacks 18 | . 14 . 4 Successful 11 | . 10 . 1 Failed 7 | . 4 . 3 Catastrophic 1 | . . . 1 Database Lockouts . | . . . . Manual 19 | . 15 . 4 Terminals 17 | . 13 . 4 Fabricators . | . . . . Repair Stations . | . . . . Recycling Units 1 | . 1 . . Scanalyzers . | . . . . Garrison Access . | . . . . Terminal Hacks 2 | . 2 . . Terminal Index 1 | . 1 . . Locate Traps 1 | . 1 . . Fabricator Hacks . | . . . . Repair Station Hacks . | . . . . Recycling Unit Hacks . | . . . . Scanalyzer . | . . . . Garrison Access Hacks . | . . . . Unauthorized Hacks 9 | . 8 . 1 Terminals 8 | . 7 . 1 Botnet 1 | . 1 . . Operators 1 | . 1 . . Skim 6 | . 5 . 1 Fabricators . | . . . . Repair Stations . | . . . . Recycling Units 1 | . 1 . . Tunnel 1 | . 1 . . Scanalyzers . | . . . . Garrison Access . | . . . . Data Cores Recovered . | . . . . Used . | . . . . Hacking Detections 5 | . 4 . 1 Full Trace Events . | . . . . Feedback Events . | . . . . Feedback Blocked . | . . . . Robot Schematics Acquired . | . . . . Robots Built . | . . . . Authchips . | . . . . Time . | . . . . Total Robot Build Rating . | . . . . Part Schematics Acquired . | . . . . Parts Built . | . . . . Authchips . | . . . . Time . | . . . . Total Part Build Rating . | . . . . Part Studies Acquired . | . . . . Parts Repaired . | . . . . Time . | . . . . Parts Recycled . | . . . . Recycled Matter . | . . . . Retrieved Matter . | . . . . Retrieved Components . | . . . . Parts Scanalyzed . | . . . . Part Schematics Acquired . | . . . . Parts Damaged . | . . . . Bothacking | -11 -10 -10 -9 ------------ Run | Yrd Mat Min Mat Used RIF Installer . | . . . . Robots Hacked . | . . . . Non-combat . | . . . . Combat . | . . . . Robot Hacks Applied . | . . . . Relay Couplers Released . | . . . . Fabnet Peak Effective % . | . . . . Robots Rewired . | . . . . Allies Hacked . | . . . . Hacks Repelled . | . . . . Allies | -11 -10 -10 -9 -------- Run | Yrd Mat Min Mat Total Allies 3 | . . 3 . Largest Group 3 | . . 3 . Highest-Rated Group 40 | . . 40 . Highest-Rated Ally 16 | . . 16 . Total Orders . | . . . . Ally Attacks 8 | . . 8 . Total Damage 78 | . . 78 . Kills 1 | . . 1 . Allies Corrupted . | . . . . Allies Melted . | . . . . X0-1V1 Amusement Gains 42 | . 7 20 15 Average Entertainment 15 | . 5 10 24 Good Acts 9 | . 1 1 7 Bad Acts 5 | . . 2 3 Intel | -11 -10 -10 -9 ------- Run | Yrd Mat Min Mat Active Infowar (turns) 857 | 146 711 . . Seismic 857 | 146 711 . . Robot Analysis Total . | . . . . Derelict Logs Recovered 3 | . . 3 . Drone Launches . | . . . . Drone Recoveries . | . . . . Exploration | -11 -10 -10 -9 ------------- Run | Yrd Mat Min Mat Turns Passed 2759 | 297 1321 623 518 Spaces Moved 1297 | 119 614 342 222 Core 6 | 6 . . . Treads 1291 | 113 614 342 222 Legs . | . . . . Wheels . | . . . . Hover . | . . . . Flight . | . . . . Fastest Speed 50 | 50 160 160 160 Average Speed 159 | 154 160 161 160 Slowest Speed 240 | 160 160 240 160 Overloaded Moves . | . . . . Propulsion Burnouts . | . . . . Robots Hopped . | . . . . Potential Cave-ins . | . . . . Cave-ins Triggered . | . . . . Exploration Rate (%) 46 | 5 87 58 34 Regions Visited 3 Branch Regions 1 Pre-discovered Areas 1 | . 1 . . Known Exits Taken 1 | . . 1 . Unknown Exits Taken 2 | 1 1 . . Scrap Searched 1 | . . 1 . Spaces Dug 3 | . 3 . . Terrain Destroyed 7 | . 4 3 . Melee 3 | . 3 . . Projectile 4 | . 1 3 . AOE . | . . . . Terrain Rammed . | . . . . Walls Destroyed . | . . . . Machines Disabled . | . . . . Actions | -11 -10 -10 -9 --------- Run | Yrd Mat Min Mat Total 1712 | 165 848 378 321 Wait 204 | 2 154 7 41 Move 1294 | 118 613 341 222 Hop . | . . . . Pick Up 28 | 6 7 1 14 Fast Attach 13 | 7 1 4 1 Attach 6 | . 1 2 3 Detach . | . . . . Swap 19 | . 9 4 6 Drop 13 | . 5 2 6 Fire 118 | 32 47 11 28 Melee 13 | . 8 5 . Ram . | . . . . Kick . | . . . . Crush 4 | . 3 1 . Escape Stasis . | . . . . Rewire . | . . . . Trap . | . . . . Miscellaneous . | . . . . Route ------- -11/Scrapyard -10/Materials (discovered 6 exits: *Mat x3 / [*Min x2] / *Sub) -10/Mines (discovered 2 exits: *Mat / Sub) -9/Materials (discovered 4 exits: *Mat x3 / [*Min]) History --------- Turn | Location | Event 6 | -11/Scrapyard | Discovered new exit (range 14) 298 | -11/Scrapyard | Entered Materials 318 | -10/Materials | Build established: Mutant 653 | -10/Materials | Discovered new exit (range 7) 751 | -10/Materials | Discovered new exit (range 8) 955 | -10/Materials | Discovered new exit (range 6) 1189 | -10/Materials | Discovered new exit (range 9) 1202 | -10/Materials | Discovered new exit (range 16) 1226 | -10/Materials | Identified exit to Subcaves 1226 | -10/Materials | Learned location of 1 exit from Materials 1304 | -10/Materials | Learned 2 Storage zone layouts 1373 | -10/Materials | Learned location of 2 exits from Materials 1432 | -10/Materials | Learned Storage stockpile data 1475 | -10/Materials | Prayed at D.C.S.S. Altar Unit 1551 | -10/Materials | Heat dissipation permanently improved by X0-1V1 (+15; -75 max core) 1608 | -10/Materials | Learned location of 1 exit from Storage 1619 | -10/Materials | Entered Mines 1667 | -10/Mines | Identified exit to Materials 1667 | -10/Mines | X0-1V1 revealed exit location to -9/Materials 1682 | -10/Mines | Learned Materials emergency access door positions 1685 | -10/Mines | X0-1V1 sent hostile S-10 Pest (x3) 1787 | -10/Mines | Found a Scrap Suit stashed away for nefarious purposes 1935 | -10/Mines | Learned Materials security intel 1940 | -10/Mines | Assembled infested the area 1945 | -10/Mines | Assisted by a Guerilla fighting off Assembled 2018 | -10/Mines | Assisted by bots powering up and referring to "LRC-V3" 2126 | -10/Mines | Learned Materials emergency access door positions 2190 | -10/Mines | Core integrity fell below 50% 2190 | -10/Mines | Destroyed YI-UF0 2220 | -10/Mines | Lost 3 allies 2242 | -10/Mines | Entered Materials 2242 | -9/Materials | Evolved 2 slots: Utility x1, Weapon x1 2243 | -9/Materials | Identified exit to Materials 2278 | -9/Materials | X0-1V1 whisked you away to safety 2379 | -9/Materials | X0-1V1 activates XOMVISION 2420 | -9/Materials | Melee accuracy permanently improved by X0-1V1 (+9%; -90 max core) 2661 | -9/Materials | X0-1V1 foreshadows a heat wave 2690 | -9/Materials | X0-1V1 sent you into danger 2706 | -9/Materials | Discovered new exit (range 15) 2706 | -9/Materials | X0-1V1 vaporized surrounding terrain (radius 18) 2760 | -9/Materials | Self-destructed Last Messages --------------- 02701_ Ion Engine melted. 02701_ A-02 Transporter destroyed. 02706_ EXIT=FOUND Surrounding terrain vaporized. 02706_ X0-1V1: "Learned that one from the Sigix." 02708_ K-01 Serf collects debris. 02712_ R-06 Scavenger collects Prototype Energy Gun. 02716_ K-01 Serf collects debris. 02716_ R-06 Scavenger collects Prototype Energy Gun. 02718_ U-05 Engineer builds a Wall. 02719_ R-06 Scavenger collects Prototype Energy Gun. 02720_ K-01 Serf collects debris. 02723_ R-06 Scavenger collects Prototype Energy Gun. 02725_ U-05 Engineer builds a Wall. 02727_ K-01 Serf collects debris. 02729_ U-05 Engineer builds a Wall. 02731_ K-01 Serf collects debris. 02733_ U-05 Engineer builds a Wall. 02737_ K-01 Serf collects debris. 02737_ U-05 Engineer builds a Wall. Map ----- +----------------------------------------------------+ | ?????????????????????????########## | | ????????????????????????????????#"" | | ????????????????????????????????#"" | | ????????????????????????????????#"T | | ????????????????????????????????#"" | | ???????????????????????????? ?#"" ^ | | ??????????????????????????? #"" | | ???????????????????????#???"""""""" | | ?????????????????????## "? " !! | | ????????????????????## "?? " ![ | | ????????????????????# " ? " | | ???????????????????## " ?[ + | | ??????????????????## " " | | ??????????????????# " """ """ " | | ??????????????##### " """ """ " | | ??????????????# # " """ """ " | | ?????????????? " " "+""""""""" | | ??????????????? " " " " | | ???????????????# #" """;+;;;"""""" | | ???????????????# # " " | | ???????????????# # " + | | ??????########?# " ; #u | | ?????? ?# # ; # | | ??????? # #;; ; ; | | ????????"" """ # ; ; ! ; ! | | ????????"" """ @ ; ; ; *%= | | ????????"" """ # ; ; ; ![= | | ????????"" """ # ; ; ; """#/" | | ???????? ?# ;;;+;;;;+;;" " %= | | ???????? ?# " | | ???????######??# + "" | | ???????????????# " T" | | ???????????????######;########""" " "" | | ????????????????????### u " " | | ??????????????????????# """ "" " """"+" | | ??????????????????????# """ ""S " " | | ??????????????????????# """ "" " " | | ??????????????????????# " " """ | | ??????????????????????# ! ] " " "?? | | ????????????????????????? # # "?? | | ??????????????????????????? ?#?? ?? | | ???????????????????????????####????????? | | ???????????????????????????????????????? | | ???????????????????????????????????????? | | ???????????????????????????????????????? | | ???????????????????????????????????????? | | ???????????????????????????????????????? | | ???????????????????????????????????????? | | ???????????????????????????????????????? | | ???????????????????????????????????????? | +----------------------------------------------------+ Best States ------------- Heat Dissipation 67 Energy Generation 14 Energy Capacity 1280 Matter Stores 300 Matter Capacity 300 Sight Range 16 Terrain Scan Density 10 Evasion (%) 40 Recoil Reduction 2 Item Schematics ----------------- None Robot Schematics ------------------ None Fabricated ------------ Nothing Repaired ---------- Nothing Studied --------- None Alien Tech Used ----------------- None Achievements -------------- None Challenges ------------ None Game ------ Seed NetworkedRemoteInterpreter Manual? 0 Play Time 00:18:07 Cumulative 646.0 hours Start 2026.09.10 @ 15:27:42 End 2026.09.10 @ 15:43:07 Sessions 1 Manual Loads 0 Difficulty Rogue Special Mode None Game No. 347 Rogue 347 Adventurer 0 Explorer 0 Win Type - Total 21 Types 10/2/3/1/1/0/1/1/0/2 Lore% 86 Gallery% 85 Achievement% 77 Wizard Run 0 Options --------- Layout 0 ASCII 0 Keyboard 0 Movement Mouse Keybinds 0 Fullscreen 1 Font 18/SmallcapsGlow Map View 76x50 Zoom Use 0% Tactical HUD 1 Map Filters NONE Filters NONE Steam 1 RUN: c3198d0c-657d-4997-b20f-a429c730b337